fUSD/lending_fUSD_20240624
["ID","MTS","AMOUNT","RATE_DAILY","PERIOD"]
[330273762,1719221450588,-578.82,0.00019452,4]
[330273763,1719221450598,-500.0,0.00019452,4]
[330273764,1719221450609,-285.08,0.00019452,4]
[330273765,1719221450619,-527.77,0.00019452,4]
[330273766,1719221450631,-500.0,0.00019452,4]
[330273767,1719221450642,-587.39,0.00019452,4]
[330273768,1719221450670,-952.68,0.00019452,4]
[330273769,1719221450681,-674.88,0.00019452,4]
[330273770,1719221450691,-500.0,0.00019452,4]
[330273771,1719221450702,-894.67,0.00019452,4]
[330273773,1719221450712,-509.74,0.00019452,4]
[330273775,1719221450723,-515.99,0.00019452,4]
[330273777,1719221450733,-500.0,0.00019452,4]
[330273779,1719221450745,-677.43,0.00019452,4]
[330273781,1719221450757,-611.04,0.00019452,4]
[330273783,1719221450767,-659.6,0.00019452,4]
[330273785,1719221450778,-986.08,0.00019452,4]
[330273787,1719221450789,-611.48,0.00019452,4]
[330273789,1719221450801,-613.86,0.00019452,4]
[330273791,1719221450811,-825.81,0.00019452,4]
[330273793,1719221450821,-707.48,0.00019452,4]
[330273795,1719221450833,-621.76,0.00019452,4]
[330273797,1719221450844,-767.98,0.00019452,4]
[330273799,1719221450856,-556.03,0.00019452,4]
[330273801,1719221450868,-563.64,0.00019452,4]
[330273803,1719221450878,-500.0,0.00019452,4]
[330273805,1719221450890,-500.0,0.00019452,4]
[330273807,1719221450902,-500.0,0.00019452,4]
[330273809,1719221450913,-500.0,0.00019452,4]
[330273811,1719221450924,-605.28,0.00019452,4]
[330273813,1719221450935,-500.0,0.00019452,4]
[330273816,1719221450946,-636.83866538,0.00019452,4]
[330273818,1719221450957,-612.67980735,0.00019452,4]
[330273820,1719221450968,-500.0,0.00019452,4]
[330273822,1719221450980,-504.94060727,0.00019452,4]
[330273824,1719221450991,-500.0,0.00019452,4]
[330273826,1719221451002,-692.24,0.00019452,4]
[330273828,1719221451014,-500.0,0.00019452,4]
[330273830,1719221451025,-628.56005969,0.00019452,4]
[330273848,1719221451244,-632.79,0.00019452,4]
[330273849,1719221451270,-500.0,0.00019452,4]
[330273850,1719221451280,-629.87,0.00019452,4]
[330273851,1719221451291,-500.0,0.00019452,4]
[330273852,1719221451301,-545.4,0.00019452,4]
[330273853,1719221451311,-500.0,0.00019452,4]
[330273854,1719221451321,-527.05,0.00019452,4]
[330273855,1719221451332,-827.28,0.00019452,4]
[330273856,1719221451343,-554.70106162,0.00019452,4]
[330273857,1719221451354,-500.0,0.00019452,4]
[330273858,1719221451365,-500.0,0.00019452,4]
[330273859,1719221451375,-507.21591949,0.00019452,4]
[330273860,1719221451385,-500.0,0.00019452,4]
[330273861,1719221451395,-723.76,0.00019452,4]
[330273862,1719221451405,-532.01,0.00019452,4]
[330273863,1719221451416,-851.06,0.00019452,4]
[330273864,1719221451429,-860.24,0.00019452,4]
[330273865,1719221451452,-500.0,0.00019452,4]
[330273866,1719221451462,-500.0,0.00019452,4]
[330273867,1719221451473,-426.48,0.00019452,4]
[330273868,1719221451483,-727.25,0.00019452,4]
[330273869,1719221451494,-637.91,0.00019452,4]
[330273870,1719221451504,-648.58,0.00019452,4]
[330273871,1719221451514,-764.02,0.00019452,4]
[330273872,1719221451524,-639.0,0.00019452,4]
[330273873,1719221451534,-500.0,0.00019452,4]
[330273874,1719221451545,-500.0,0.00019452,4]
[330273875,1719221451554,-752.54,0.00019452,4]
[330273876,1719221451564,-552.19,0.00019452,4]
[330273877,1719221451574,-675.49,0.00019452,4]
[330273878,1719221451584,-934.49,0.00019452,4]
[330273879,1719221451594,-500.0,0.00019452,4]
[330273880,1719221451604,-593.44673842,0.00019452,4]
[330273881,1719221451614,-508.81,0.00019452,4]
[330273882,1719221451623,-541.88,0.00019452,4]
[330273883,1719221451633,-500.0,0.00019452,4]
[330273884,1719221451642,-500.0,0.00019452,4]
[330273885,1719221451652,-724.72,0.00019452,4]
[330273886,1719221451662,-650.21,0.00019452,4]
[330273887,1719221451672,-647.16,0.00019452,4]
[330273888,1719221451682,-679.63,0.00019452,4]
[330273889,1719221451693,-740.35,0.00019452,4]
[330273890,1719221451703,-849.74,0.00019452,4]
[330273891,1719221451713,-746.5,0.00019452,4]
[330273892,1719221451724,-500.0,0.00019452,4]
[330273893,1719221451734,-500.1,0.00019452,4]
[330273894,1719221451743,-500.0,0.00019452,4]
[330273895,1719221451754,-587.85,0.00019452,4]
[330273896,1719221451763,-500.0,0.00019452,4]
[330273897,1719221451774,-706.96,0.00019452,4]
[330273898,1719221451785,-858.15,0.00019452,4]
[330273899,1719221451795,-500.0,0.00019452,4]
[330273900,1719221451805,-563.8,0.00019452,4]
[330273901,1719221451815,-730.57,0.00019452,4]
[330273902,1719221451825,-606.55,0.00019452,4]
[330273903,1719221451835,-866.29,0.00019452,4]
[330273904,1719221451845,-690.17,0.00019452,4]
[330273905,1719221451855,-815.29,0.00019452,4]
[330273906,1719221451866,-500.0,0.00019452,4]
[330273907,1719221451876,-883.06,0.00019452,4]
[330273908,1719221451886,-577.19,0.00019452,4]
[330273909,1719221451896,-729.24,0.00019452,4]
[330273910,1719221451906,-579.75116095,0.00019452,4]
[330273911,1719221451916,-737.88,0.00019452,4]
[330273912,1719221451926,-500.0,0.00019452,4]
[330273913,1719221451944,-193.59,0.00019452,4]
[330273914,1719221451959,-500.0,0.00019452,4]
[330273915,1719221451969,-500.0,0.00019452,4]
[330273916,1719221451979,-500.0,0.00019452,4]
[330273917,1719221451991,-581.48,0.00019452,4]
[330273918,1719221452000,-815.27,0.00019452,4]
[330273919,1719221452011,-840.12,0.00019452,4]
[330273920,1719221452020,-183.44,0.00019452,4]
[330273921,1719221452030,-500.0,0.00019452,4]
[330273922,1719221452041,-500.0,0.00019452,4]
[330273923,1719221452051,-500.0,0.00019452,4]
[330273924,1719221452061,-500.0,0.00019452,4]
[330273925,1719221452070,-500.0,0.00019452,4]
[330273926,1719221452083,-500.0,0.00019452,4]
[330273927,1719221452094,-488.61,0.00019452,4]
[330273928,1719221452105,-741.45,0.00019452,4]
[330273929,1719221452117,-500.0,0.00019452,4]
[330273930,1719221452130,-500.0,0.00019452,4]
[330273931,1719221452140,-536.47851716,0.00019452,4]
[330273932,1719221452152,-840.22,0.00019452,4]
[330273933,1719221452163,-500.0,0.00019452,4]
[330273934,1719221452173,-945.66,0.00019452,4]
[330273935,1719221452183,-500.0,0.00019452,4]
[330273936,1719221452193,-639.28,0.00019452,4]
[330273937,1719221452203,-500.0,0.00019452,4]
[330273938,1719221452213,-500.0,0.00019452,4]
[330273939,1719221452223,-500.0,0.00019452,4]
[330273940,1719221452233,-935.12,0.00019452,4]
[330273941,1719221452244,-500.0,0.00019452,4]
[330273942,1719221452254,-500.0,0.00019452,4]
[330273943,1719221452266,-500.0,0.00019452,4]
[330273944,1719221452277,-957.36,0.00019452,4]
[330273945,1719221452288,-543.91,0.00019452,4]
[330273946,1719221452298,-500.0,0.00019452,4]
[330273947,1719221452308,-505.08,0.00019452,4]
[330273948,1719221452318,-500.0,0.00019452,4]
[330273949,1719221452329,-500.0,0.00019452,2]
[330273950,1719221452338,-500.0,0.00019452,4]
[330273951,1719221452348,-841.78,0.00019452,4]
[330273952,1719221452359,-500.0,0.00019452,4]
[330273953,1719221452369,-500.0,0.00019452,4]
[330273954,1719221452380,-698.57,0.00019452,4]
[330273955,1719221452390,-500.0,0.00019452,4]
[330273956,1719221452400,-836.32,0.00019452,4]
[330273957,1719221452410,-513.6,0.00019452,4]
[330273958,1719221452420,-500.0,0.00019452,4]
[330273959,1719221452430,-588.59,0.00019452,4]
[330273960,1719221452440,-657.52,0.00019452,4]
[330273961,1719221452456,-794.26,0.00019452,4]
[330273962,1719221452477,-500.0,0.00019452,4]
[330273963,1719221452488,-500.0,0.00019452,4]
[330273964,1719221452498,-500.0,0.00019452,4]
[330273965,1719221452509,-791.91,0.00019452,4]
[330273966,1719221452519,-1694.54,0.00019452,4]
[330273967,1719221452529,-896.28,0.00019452,4]
[330273968,1719221452540,-608.41,0.00019452,4]
[330273969,1719221452550,-500.0,0.00019452,4]
[330273970,1719221452560,-500.0,0.00019452,4]
[330273971,1719221452570,-2792.65,0.00019452,4]
[330273972,1719221452581,-529.67,0.00019452,4]
[330273973,1719221452590,-500.0,0.00019452,4]
[330273974,1719221452600,-635.89,0.00019452,4]
[330273975,1719221452610,-513.97,0.00019452,4]
[330273976,1719221452620,-333.75103459,0.00019452,4]
[330273977,1719221452630,-500.0,0.00019452,4]
[330273978,1719221452640,-500.0,0.00019452,4]
[330273979,1719221452650,-1014.35,0.00019452,4]
[330273980,1719221452659,-1027.87,0.00019452,4]
[330273981,1719221452670,-726.38,0.00019452,4]
[330273982,1719221452680,-500.0,0.00019452,4]
[330273983,1719221452689,-162.38836518,0.00019452,4]
[330273984,1719221452699,-652.98,0.00019452,4]
[330273985,1719221452710,-658.16,0.00019452,4]
[330273986,1719221452720,-1100.8,0.00019452,4]
[330273987,1719221452730,-808.21,0.00019452,4]
[330273988,1719221452741,-500.0,0.00019452,4]
[330273989,1719221452751,-580.36,0.00019452,4]
[330273990,1719221452761,-600.96,0.00019452,4]
[330273991,1719221452771,-541.37,0.00019452,4]
[330273992,1719221452781,-2529.06,0.00019452,4]
[330273993,1719221452791,-2863.88,0.00019452,4]
[330273994,1719221452801,-500.0,0.00019452,4]
[330273995,1719221452811,-500.0,0.00019452,4]
[330273996,1719221452821,-500.0,0.00019452,4]
[330273997,1719221452830,-500.0,0.00019452,4]
[330273998,1719221452840,-623.73,0.00019452,4]
[330273999,1719221452850,-653.53,0.00019452,4]
[330274000,1719221452859,-763.67,0.00019452,4]
[330274001,1719221452869,-597.21688243,0.00019452,4]
[330274002,1719221452878,-1808.46,0.00019452,4]
[330274003,1719221452887,-610.29,0.00019452,4]
[330274004,1719221452898,-908.15,0.00019452,4]
[330274005,1719221452907,-533.28,0.00019452,4]
[330274006,1719221452918,-584.9,0.00019452,4]
[330274007,1719221452929,-512.0,0.00019452,4]
[330274008,1719221452938,-500.0,0.00019452,2]
[330274009,1719221452948,-500.0,0.00019452,4]
[330274010,1719221452971,-500.0,0.00019452,4]
[330274011,1719221452983,-1091.83,0.00019452,4]
[330274012,1719221452993,-500.0,0.00019452,4]
[330274013,1719221453002,-533.39,0.00019452,4]
[330274014,1719221453012,-500.0,0.00019452,4]
[330274015,1719221453021,-1109.31,0.00019452,4]
[330274016,1719221453030,-738.89,0.00019452,4]
[330274017,1719221453040,-500.0,0.00019452,4]
[330274018,1719221453049,-500.0,0.00019452,4]
[330274019,1719221453058,-932.5,0.00019452,4]
[330274020,1719221453068,-690.76,0.00019452,4]
[330274021,1719221453077,-200.15040299,0.00019452,4]
[330274022,1719221453094,-573.56,0.00019452,4]
[330274023,1719221453104,-500.0,0.00019452,4]
[330274024,1719221453113,-500.0,0.00019452,4]
[330274025,1719221453122,-2102.4,0.00019452,4]
[330274026,1719221453137,-594.16,0.00019452,4]
[330274027,1719221453146,-500.0,0.00019452,4]
[330274028,1719221453155,-500.0,0.00019452,4]
[330274029,1719221453164,-500.0,0.00019452,4]
[330274030,1719221453174,-292.38943395,0.00019452,4]
[330274031,1719221453183,-3401.89,0.00019452,4]
[330274032,1719221453192,-500.0,0.00019452,4]
[330274033,1719221453202,-501.94,0.00019452,4]
[330274034,1719221453210,-881.78,0.00019452,4]
[330274035,1719221453220,-1798.69,0.00019452,4]
[330274036,1719221453230,-1656.04,0.00019452,4]
[330274037,1719221453241,-500.0,0.00019452,4]
[330274038,1719221453250,-500.0,0.00019452,4]
[330274039,1719221453260,-1396.5,0.00019452,4]
[330274040,1719221453270,-500.0,0.00019452,4]
[330274041,1719221453280,-500.0,0.00019452,4]
[330274042,1719221453290,-500.0,0.00019452,4]
[330274043,1719221453300,-1145.17,0.00019452,4]
[330274044,1719221453309,-1444.01,0.00019452,4]
[330274045,1719221453319,-503.51161705,0.00019452,4]
[330274046,1719221453329,-2054.46,0.00019452,4]
[330274047,1719221453339,-10044.42,0.00019452,4]
[330274048,1719221453349,-728.03,0.00019452,4]
[330274049,1719221453359,-685.73,0.00019452,4]
[330274050,1719221453368,-500.0,0.00019452,4]
[330274051,1719221453378,-500.0,0.00019452,4]
[330274052,1719221453387,-500.0,0.00019452,4]
[330274053,1719221453397,-722.97,0.00019452,4]
[330274054,1719221453407,-858.63,0.00019452,4]
[330274055,1719221453416,-500.0,0.00019452,4]
[330274056,1719221453426,-608.78,0.00019452,4]
[330274057,1719221453435,-500.0,0.00019452,4]
[330274058,1719221453444,-530.98,0.00019452,4]
[330274059,1719221453454,-2951.6,0.00019452,4]
[330274060,1719221453464,-877.57,0.00019452,4]
[330274061,1719221453479,-500.0,0.00019452,4]
[330274062,1719221453500,-500.0,0.00019452,4]
[330274063,1719221453509,-14859.61,0.00019452,4]
[330274064,1719221453519,-500.0,0.00019452,4]
[330274065,1719221453529,-500.0,0.00019452,4]
[330274066,1719221453539,-500.0,0.00019452,4]
[330274067,1719221453549,-880.92,0.00019452,4]
[330274068,1719221453558,-863.63,0.00019452,4]
[330274069,1719221453568,-1665.06,0.00019452,4]
[330274070,1719221453578,-500.0,0.00019452,4]
[330274071,1719221453588,-573.22,0.00019452,4]
[330274072,1719221453598,-500.0,0.00019452,4]
[330274073,1719221453607,-1512.7,0.00019452,4]
[330274074,1719221453616,-500.0,0.00019452,4]
[330274075,1719221453626,-500.0,0.00019452,4]
[330274076,1719221453636,-1138.11,0.00019452,4]
[330274077,1719221453645,-500.0,0.00019452,4]
[330274078,1719221453655,-500.0,0.00019452,4]
[330274079,1719221453666,-500.0,0.00019452,4]
[330274080,1719221453676,-204.45,0.00019452,4]
[330274081,1719221453685,-500.0,0.00019452,4]
[330274082,1719221453695,-922.67,0.00019452,4]
[330274083,1719221453704,-500.0,0.00019452,4]
[330274084,1719221453715,-500.0,0.00019452,4]
[330274085,1719221453783,-692.88,0.00019452,4]
[330274086,1719221453793,-1014.99,0.00019452,4]
[330274087,1719221453803,-500.0,0.00019452,4]
[330274088,1719221453813,-724.34,0.00019452,4]
[330274089,1719221453823,-745.13,0.00019452,4]
[330274090,1719221453833,-1843.17,0.00019452,4]
[330274091,1719221453842,-772.68,0.00019452,4]
[330274092,1719221453852,-588.67,0.00019452,4]
[330274093,1719221453861,-1421.28,0.00019452,4]
[330274094,1719221453871,-1937.34,0.00019452,4]
[330274095,1719221453880,-500.0,0.00019452,4]
[330274096,1719221453890,-500.0,0.00019452,4]
[330274097,1719221453899,-840.14,0.00019452,4]
[330274098,1719221453909,-500.0,0.00019452,4]
[330274099,1719221453919,-1094.97,0.00019452,4]
[330274100,1719221453929,-528.93,0.00019452,4]
[330274101,1719221453939,-500.0,0.00019452,4]
[330274102,1719221453948,-500.0,0.00019452,4]
[330274103,1719221453958,-610.19,0.00019452,4]
[330274104,1719221453968,-500.0,0.00019452,4]
[330274105,1719221453994,-589.19,0.00019452,4]
[330274106,1719221454004,-500.0,0.00019452,4]
[330274107,1719221454015,-500.0,0.00019452,4]
[330274108,1719221454024,-939.72,0.00019452,4]
[330274109,1719221454034,-1202.18,0.00019452,4]
[330274110,1719221454044,-870.19,0.00019452,4]
[330274111,1719221454054,-500.0,0.00019452,4]
[330274112,1719221454064,-500.0,0.00019452,4]
[330274113,1719221454075,-1030.47,0.00019452,4]
[330274114,1719221454089,-1039.09,0.00019452,4]
[330274115,1719221454099,-2116.67,0.00019452,4]
[330274116,1719221454108,-693.85,0.00019452,4]
[330274117,1719221454118,-500.0,0.00019452,4]
[330274118,1719221454131,-635.53,0.00019452,4]
[330274119,1719221454142,-500.0,0.00019452,4]
[330274120,1719221454152,-500.0,0.00019452,4]
[330274121,1719221454162,-500.0,0.00019452,4]
[330274122,1719221454176,-1486.41,0.00019452,4]
[330274123,1719221454185,-1895.67,0.00019452,4]
[330274124,1719221454196,-954.61,0.00019452,4]
[330274125,1719221454206,-272.06439941,0.00019452,4]
[330274126,1719221454216,-1270.74,0.00019452,4]
[330274127,1719221454226,-620.47,0.00019452,4]
[330274128,1719221454236,-1727.08,0.00019452,4]
[330274129,1719221454247,-500.0,0.00019452,4]
[330274130,1719221454257,-1536.5,0.00019452,4]
[330274131,1719221454270,-500.0,0.00019452,4]
[330274132,1719221454279,-500.0,0.00019452,4]
[330274133,1719221454289,-500.0,0.00019452,4]
[330274134,1719221454299,-500.0,0.00019452,4]
[330274135,1719221454310,-500.0,0.00019452,4]
[330274136,1719221454319,-500.0,0.00019452,4]
[330274137,1719221454329,-1096.63,0.00019452,4]
[330274138,1719221454340,-661.9,0.00019452,4]
[330274139,1719221454349,-500.0,0.00019452,4]
[330274140,1719221454359,-1358.05,0.00019452,4]
[330274141,1719221454369,-500.0,0.00019452,4]
[330274142,1719221454379,-1010.56,0.00019452,4]
[330274143,1719221454389,-500.0,0.00019452,4]
[330274144,1719221454399,-500.0,0.00019452,4]
[330274145,1719221454408,-1862.43,0.00019452,4]
[330274146,1719221454418,-500.0,0.00019452,4]
[330274147,1719221454427,-500.0,0.00019452,4]
[330274148,1719221454437,-1311.74,0.00019452,4]
[330274149,1719221454446,-500.0,0.00019452,4]
[330274150,1719221454456,-500.0,0.00019452,4]
[330274151,1719221454466,-569.02,0.00019452,4]
[330274152,1719221454475,-612.46,0.00019452,4]
[330274153,1719221454504,-500.0,0.00019452,4]
[330274154,1719221454514,-500.0,0.00019452,4]
[330274155,1719221454525,-445.21715581,0.00019452,4]
[330274156,1719221454535,-500.0,0.00019452,4]
[330274157,1719221454544,-500.0,0.00019452,4]
[330274158,1719221454554,-774.27,0.00019452,4]
[330274159,1719221454564,-1493.59,0.00019452,4]
[330274160,1719221454573,-1076.34,0.00019452,4]
[330274161,1719221454582,-1180.3,0.00019452,4]
[330274162,1719221454592,-1602.79,0.00019452,4]
[330274163,1719221454601,-500.0,0.00019452,4]
[330274164,1719221454610,-596.37,0.00019452,4]
[330274165,1719221454620,-904.49,0.00019452,4]
[330274166,1719221454629,-3648.6,0.00019452,4]
[330274167,1719221454640,-500.0,0.00019452,4]
[330274168,1719221454649,-1401.97,0.00019452,4]
[330274169,1719221454659,-500.0,0.00019452,4]
[330274170,1719221454670,-500.0,0.00019452,4]
[330274171,1719221454679,-500.0,0.00019452,4]
[330274172,1719221454688,-1867.05,0.00019452,4]
[330274173,1719221454698,-500.0,0.00019452,4]
[330274174,1719221454707,-1917.18,0.00019452,4]
[330274175,1719221454717,-539.5,0.00019452,4]
[330274176,1719221454726,-747.4,0.00019452,4]
[330274177,1719221454735,-5870.36,0.00019452,4]
[330274178,1719221454745,-550.72,0.00019452,4]
[330274179,1719221454755,-315.92478182,0.00019452,4]
[330274184,1719221455167,-566.18888113,0.00019452,4]
[330274185,1719221455180,-1506.79633705,0.00019452,4]
[330274186,1719221455191,-500.0,0.00019452,4]
[330274187,1719221455201,-500.0,0.00019452,4]
[330274188,1719221455211,-501.37,0.00019452,4]
[330274189,1719221455221,-1499.24,0.00019452,4]
[330274190,1719221455231,-500.0,0.00019452,4]
[330274191,1719221455241,-500.0,0.00019452,4]
[330274192,1719221455251,-3128.36,0.00019452,4]
[330274193,1719221455263,-784.49,0.00019452,4]
[330274194,1719221455274,-1236.09,0.00019452,4]
[330274195,1719221455284,-500.0,0.00019452,4]
[330274196,1719221455294,-2500.0,0.00019452,3]
[330274197,1719221455303,-500.0,0.00019452,4]
[330274198,1719221455313,-500.0,0.00019452,4]
[330274199,1719221455323,-500.0,0.00019452,4]
[330274200,1719221455332,-570.65,0.00019452,4]
[330274201,1719221455342,-500.0,0.00019452,4]
[330274202,1719221455352,-1087.64,0.00019452,4]
[330274203,1719221455361,-500.0,0.00019452,4]
[330274204,1719221455371,-1492.08,0.00019452,4]
[330274205,1719221455381,-2784.87,0.00019452,4]
[330274206,1719221455390,-709.34,0.00019452,4]
[330274207,1719221455399,-500.0,0.00019452,4]
[330274208,1719221455408,-500.0,0.00019452,2]
[330274209,1719221455418,-500.0,0.00019452,4]
[330274210,1719221455427,-500.0,0.00019452,4]
[330274211,1719221455437,-1293.94,0.00019452,4]
[330274212,1719221455446,-1278.17,0.00019452,4]
[330274213,1719221455456,-1892.22,0.00019452,4]
[330274214,1719221455465,-924.07,0.00019452,4]
[330274215,1719221455476,-500.0,0.00019452,4]
[330274216,1719221455486,-500.0,0.00019452,4]
[330274217,1719221455514,-985.76,0.00019452,4]
[330274218,1719221455524,-500.0,0.00019452,4]
[330274219,1719221455535,-2011.41,0.00019452,4]
[330274220,1719221455544,-790.64,0.00019452,4]
[330274221,1719221455555,-872.65,0.00019452,4]
[330274222,1719221455565,-1891.81,0.00019452,4]
[330274223,1719221455575,-500.0,0.00019452,4]
[330274224,1719221455585,-500.0,0.00019452,4]
[330274225,1719221455595,-500.0,0.00019452,4]
[330274226,1719221455605,-500.0,0.00019452,4]
[330274227,1719221455615,-500.0,0.00019452,4]
[330274228,1719221455625,-500.0,0.00019452,4]
[330274229,1719221455637,-574.92,0.00019452,4]
[330274230,1719221455647,-788.54,0.00019452,4]
[330274231,1719221455657,-589.51,0.00019452,4]
[330274232,1719221455667,-500.0,0.00019452,4]
[330274233,1719221455678,-18.88406439,0.00019452,4]
[330274234,1719221455881,-836.04593561,0.00019452,4]
[330274235,1719221455891,-1016.82,0.00019452,4]
[330274236,1719221455901,-3298.75,0.00019452,4]
[330274237,1719221455911,-222.2827917,0.00019452,4]
[330274238,1719221455924,-277.7172083,0.00019452,4]
[330274239,1719221455934,-316.15672716,0.00019452,4]
[330274240,1719221455946,-183.84327284,0.00019452,4]
[330274241,1719221455957,-500.0,0.00019452,4]
[330274242,1719221455967,-500.0,0.00019452,4]
[330274243,1719221455976,-500.0,0.00019452,4]
[330274244,1719221455987,-2044.66,0.00019452,4]
[330274245,1719221455997,-1350.85,0.00019452,4]
[330274246,1719221456025,-500.0,0.00019452,4]
[330274247,1719221456037,-500.0,0.00019452,4]
[330274248,1719221456048,-200.540806,0.00019522,2]
[330274249,1719221456059,-1208.54198432,0.00019537,2]
[330274250,1719221456071,-412.61839352,0.00019699,2]
[330274251,1719221456084,-151.79,0.00019721,2]
[330274252,1719221456098,-500.0,0.00019726,4]
[330274253,1719221456109,-500.0,0.00019726,4]
[330274254,1719221456119,-1209.07,0.00019726,4]
[330274255,1719221456131,-500.0,0.00019726,4]
[330274256,1719221456141,-1731.28,0.00019726,4]
[330274257,1719221456152,-1285.84,0.00019726,4]
[330274258,1719221456164,-1212.55,0.00019726,4]
[330274259,1719221456174,-500.0,0.00019726,4]
[330274260,1719221456185,-500.0,0.00019726,4]
[330274261,1719221456195,-514.55,0.00019726,4]
[330274262,1719221456205,-707.98,0.00019726,4]
[330274263,1719221456218,-583.57,0.00019726,4]
[330274264,1719221456229,-538.15,0.00019726,4]
[330274265,1719221456240,-673.57,0.00019726,4]
[330274266,1719221456252,-650.34,0.00019726,4]
[330274267,1719221456265,-500.0,0.00019726,4]
[330274268,1719221456275,-505.7889065,0.00019726,4]
[330274269,1719221456285,-500.0,0.00019726,4]
[330274270,1719221456295,-500.0,0.00019726,4]
[330274271,1719221456305,-500.0,0.00019726,4]
[330274272,1719221456314,-681.7,0.00019726,4]
[330274273,1719221456324,-500.0,0.00019726,4]
[330274274,1719221456335,-500.0,0.00019726,4]
[330274275,1719221456344,-500.0,0.00019726,4]
[330274276,1719221456354,-500.0,0.00019726,4]
[330274277,1719221456363,-500.0,0.00019726,4]
[330274278,1719221456373,-500.0,0.00019726,4]
[330274279,1719221456383,-797.03,0.00019726,4]
[330274280,1719221456392,-500.0,0.00019726,4]
[330274281,1719221456402,-573.41,0.00019726,4]
[330274282,1719221456412,-960.92,0.00019726,4]
[330274283,1719221456422,-500.0,0.00019726,4]
[330274284,1719221456432,-250.0,0.00019726,4]
[330274285,1719221456443,-500.0,0.00019726,4]
[330274286,1719221456452,-1004.34,0.00019726,4]
[330274287,1719221456462,-514.4,0.00019726,4]
[330274288,1719221456472,-578.82,0.00019726,4]
[330274289,1719221456482,-500.0,0.00019726,4]
[330274290,1719221456492,-500.0,0.00019726,4]
[330274291,1719221456502,-952.68,0.00019726,4]
[330274292,1719221456528,-674.88,0.00019726,4]
[330274293,1719221456538,-500.0,0.00019726,4]
[330274294,1719221456548,-894.67,0.00019726,4]
[330274295,1719221456558,-509.74,0.00019726,4]
[330274296,1719221456567,-515.99,0.00019726,4]
[330274297,1719221456577,-500.0,0.00019726,4]
[330274298,1719221456586,-677.43,0.00019726,4]
[330274299,1719221456596,-611.04,0.00019726,4]
[330274300,1719221456605,-659.6,0.00019726,4]
[330274301,1719221456615,-986.08,0.00019726,4]
[330274302,1719221456625,-613.86,0.00019726,4]
[330274303,1719221456634,-825.81,0.00019726,4]
[330274304,1719221456644,-707.48,0.00019726,4]
[330274305,1719221456654,-767.98,0.00019726,4]
[330274306,1719221456664,-621.76,0.00019726,4]
[330274307,1719221456674,-556.03,0.00019726,4]
[330274308,1719221456683,-563.64,0.00019726,4]
[330274309,1719221456693,-500.0,0.00019726,4]
[330274310,1719221456703,-500.0,0.00019726,4]
[330274311,1719221456712,-500.0,0.00019726,4]
[330274312,1719221456722,-500.0,0.00019726,4]